2CCN - Level 2 Cost Centre Name,,9CCN - Level 9 Cost Centre Name,9CCC - Level 9 Cost Centre Code,9AN - Level 9 Account Name,9AC - Level 9 Account Code,Date posted,Date of transaction,Merchant Name,MerchantCity,Originating Account Name,Originating Account Number,MCC/SIC Code,MCC Description,Original Amount,Currency,Conversion Rate,Billed Amount,DebitCredit,ReferenceNbr,Statement Cycle,AccountName
Gloucester City Council,23UE,FOLK MUSEUM,LM210,PUBLICATIONS FOR SALE,5064,13/10/2015,12/10/2015,HANCOCK CASH AND CARRY LT,LOUGHBOROUGH,REDACTED,471565******4015,5300,WHOLESALE CLUBS,255.82,Pound Sterling (826),1,255.82,Debit,7.44637E+22,02/11/2015,GLOUCESTER CC
Gloucester City Council,23UE,TOURISM MARKETING,LT100,OPERATIONAL EQUIPMENT <5000,5012,21/10/2015,20/10/2015,WWW.UKPOS.COM,INTERNET,REDACTED,471565******4015,5943,STATIONERY  OFFICE AND SCHOOL SUPPLY STO,207.74,Pound Sterling (826),1,207.74,Debit,7.49168E+22,02/11/2015,GLOUCESTER CC
Gloucester City Council,23UE,TOURISM MARKETING,LT100,UNIFORMS,5201,22/10/2015,21/10/2015,WWW.BURTON.CO.UK,LONDON,REDACTED,471565******4015,5691,MEN'S AND WOMEN'S CLOTHING STORES,35,Pound Sterling (826),1,35,Debit,7.46971E+22,02/11/2015,GLOUCESTER CC
Gloucester City Council,23UE,HOMELESSNESS PREVENTION,CH122,FEES FOR SERVICES RECEIVED,5350,05/10/2015,02/10/2015,THE PROPERTY CENTRE,GLOUCESTER,REDACTED,471565******1443,8999,PROFESSIONAL SERVICES NOT ELSEWHERE CLASSIFIED,530,Pound Sterling (826),1,530,Debit,7.46786E+22,02/11/2015,GLOUCESTER CC
Gloucester City Council,23UE,HOMELESSNESS,CH120,RENT IN ADVANCE,5516,05/10/2015,02/10/2015,THE PROPERTY CENTRE,GLOUCESTER,REDACTED,471565******1443,8999,PROFESSIONAL SERVICES NOT ELSEWHERE CLASSIFIED,186.12,Pound Sterling (826),1,186.12,Debit,7.46786E+22,02/11/2015,GLOUCESTER CC
Gloucester City Council,23UE,HOMELESSNESS,CH120,FEES FOR SERVICES RECEIVED,5350,05/10/2015,02/10/2015,THE PROPERTY CENTRE,GLOUCESTER,REDACTED,471565******1443,8999,PROFESSIONAL SERVICES NOT ELSEWHERE CLASSIFIED,17.9,Pound Sterling (826),1,17.9,Debit,7.46786E+22,02/11/2015,GLOUCESTER CC
Gloucester City Council,23UE,HOMELESSNESS,CH120,GENERAL REPAIR/MAINT BUILDINGS,3000,15/10/2015,14/10/2015,ARGOS RETAIL GROUP,INTERNET,REDACTED,471565******1443,5310,DISCOUNT STORES,149.97,Pound Sterling (826),1,149.97,Debit,7.45792E+22,02/11/2015,GLOUCESTER CC
Gloucester City Council,23UE,DOCKS COMPLEX - SERVICES,RB100,OPERATIONAL EQUIPMENT <5000,5012,13/10/2015,12/10/2015,B & Q,GLOUCESTER GL,REDACTED,471565******8223,5211,LUMBER AND BUILDING MATERIALS STORES,25.37,Pound Sterling (826),1,25.37,Debit,7.45792E+22,02/11/2015,GLOUCESTER CC
Gloucester City Council,23UE,DOCKS COMPLEX - SERVICES,RB100,OPERATIONAL EQUIPMENT <5000,5012,23/10/2015,22/10/2015,B & Q,GLOUCESTER GL,REDACTED,471565******8223,5211,LUMBER AND BUILDING MATERIALS STORES,5.94,Pound Sterling (826),1,5.94,Debit,7.45792E+22,02/11/2015,GLOUCESTER CC
Gloucester City Council,23UE,DOCKS COMPLEX - SERVICES,RB100,OPERATIONAL EQUIPMENT <5000,5012,29/10/2015,28/10/2015,B & Q,GLOUCESTER GL,REDACTED,471565******8223,5211,LUMBER AND BUILDING MATERIALS STORES,26.95,Pound Sterling (826),1,26.95,Debit,7.45792E+22,02/11/2015,GLOUCESTER CC
Gloucester City Council,23UE,HOUSING WORKS IN DEFAULT,HD500,CLEARANCE AND CLEANSING FEES,5384,23/10/2015,22/10/2015,Amazon UK Marketplace,800-279-6620,REDACTED,471565******8476,5999,MISCELLANEOUS AND RETAIL STORES,100.58,Pound Sterling (826),1,100.58,Debit,7.43132E+22,02/11/2015,GLOUCESTER CC
Gloucester City Council,23UE,HOUSING WORKS IN DEFAULT,HD500,CLEARANCE AND CLEANSING FEES,5384,28/10/2015,27/10/2015,Amazon UK Marketplace,800-279-6620,REDACTED,471565******8476,5999,MISCELLANEOUS AND RETAIL STORES,9.49,Pound Sterling (826),1,9.49,Debit,7.43132E+22,02/11/2015,GLOUCESTER CC
Gloucester City Council,23UE,HOUSING WORKS IN DEFAULT,HD500,CLEARANCE AND CLEANSING FEES,5384,28/10/2015,27/10/2015,Amazon UK Retail,AMAZON.CO.UK,REDACTED,471565******8476,5969,ALL OTHER DIRECT MARKETERS,11.19,Pound Sterling (826),1,11.19,Debit,7.43132E+22,02/11/2015,GLOUCESTER CC
Gloucester City Council,23UE,CITY MUSEUM AND ART GALLERY,LM200,ADVERTISING AND PUBLICITY,5702,05/10/2015,30/09/2015,FACEBOOK EKKGK8SJW2,www.fb.me/ads,REDACTED,471565******9991,7311,ADVERTISING SERVICES,38.19,Pound Sterling (826),1,38.19,Debit,7.49875E+22,02/11/2015,GLOUCESTER CC
Gloucester City Council,23UE,FOLK MUSEUM,LM210,ADVERTISING AND PUBLICITY,5702,05/10/2015,30/09/2015,FACEBOOK EKKGK8SJW2,www.fb.me/ads,REDACTED,471565******9991,7311,ADVERTISING SERVICES,38.19,Pound Sterling (826),1,38.19,Debit,7.49875E+22,02/11/2015,GLOUCESTER CC
Gloucester City Council,23UE,FOLK MUSEUM,LM210,PUBLICATIONS FOR SALE,5064,22/10/2015,21/10/2015,WWW.LABELPLANET.CO.UK,INTERNET,REDACTED,471565******9991,5943,STATIONERY  OFFICE AND SCHOOL SUPPLY STO,69,Pound Sterling (826),1,69,Debit,7.46786E+22,02/11/2015,GLOUCESTER CC
Gloucester City Council,23UE,FOLK MUSEUM,LM210,PUBLICATIONS FOR SALE,5064,22/10/2015,21/10/2015,Amazon UK Marketplace,800-279-6620,REDACTED,471565******9991,5942,BOOK STORES,29.9,Pound Sterling (826),1,29.9,Debit,7.43132E+22,02/11/2015,GLOUCESTER CC
Gloucester City Council,23UE,FOLK MUSEUM,LM210,PUBLICATIONS FOR SALE,5064,22/10/2015,22/10/2015,Amazon UK Marketplace,800-279-6620,REDACTED,471565******9991,5999,MISCELLANEOUS AND RETAIL STORES,5.74,Pound Sterling (826),1,5.74,Debit,7.43132E+22,02/11/2015,GLOUCESTER CC
Gloucester City Council,23UE,FOLK MUSEUM,LM210,PUBLICATIONS FOR SALE,5064,23/10/2015,22/10/2015,Amazon UK Marketplace,800-279-6620,REDACTED,471565******9991,5999,MISCELLANEOUS AND RETAIL STORES,33.25,Pound Sterling (826),1,33.25,Debit,7.43132E+22,02/11/2015,GLOUCESTER CC
Gloucester City Council,23UE,FOLK MUSEUM,LM210,PUBLICATIONS FOR SALE,5064,23/10/2015,22/10/2015,Amazon UK Marketplace,800-279-6620,REDACTED,471565******9991,5999,MISCELLANEOUS AND RETAIL STORES,18.9,Pound Sterling (826),1,18.9,Debit,7.43132E+22,02/11/2015,GLOUCESTER CC
Gloucester City Council,23UE,FOLK MUSEUM,LM210,PUBLICATIONS FOR SALE,5064,26/10/2015,23/10/2015,HANCOCK CASH AND CARRY LT,LOUGHBOROUGH,REDACTED,471565******9991,5300,WHOLESALE CLUBS,159.77,Pound Sterling (826),1,159.77,Debit,7.44637E+22,02/11/2015,GLOUCESTER CC
Gloucester City Council,23UE,FOLK MUSEUM,LM210,EVENTS,5952,26/10/2015,24/10/2015,ASDA SUPERSTORE,GLOUCESTER,REDACTED,471565******9991,5411,GROCERY STORES  SUPERMARKETS,37.19,Pound Sterling (826),1,37.19,Debit,7.46982E+22,02/11/2015,GLOUCESTER CC
Gloucester City Council,23UE,ARTS EDUCATIONAL PROMOTIONS,LA610,OPERATIONAL EQUIPMENT <5000,5012,26/10/2015,23/10/2015,PAPERSTONE,LONDON,REDACTED,471565******9991,5943,STATIONERY  OFFICE AND SCHOOL SUPPLY STO,68.54,Pound Sterling (826),1,68.54,Debit,7.48305E+22,02/11/2015,GLOUCESTER CC
Gloucester City Council,23UE,FOLK MUSEUM,LM210,EVENTS,5952,02/11/2015,30/10/2015,TESCO STORE 2581,GLOUCESTER,REDACTED,471565******9991,5411,GROCERY STORES  SUPERMARKETS,29.74,Pound Sterling (826),1,29.74,Debit,7.46971E+22,02/11/2015,GLOUCESTER CC
Gloucester City Council,23UE,CITY MUSEUM AND ART GALLERY,LM200,ADVERTISING AND PUBLICITY,5702,02/11/2015,31/10/2015,FACEBOOK S759N8WJW2,www.fb.me/ads,REDACTED,471565******9991,7311,ADVERTISING SERVICES,141.56,Pound Sterling (826),1,141.56,Debit,7.49875E+22,02/11/2015,GLOUCESTER CC
Gloucester City Council,23UE,FOLK MUSEUM,LM210,ADVERTISING AND PUBLICITY,5702,02/11/2015,31/10/2015,FACEBOOK S759N8WJW2,www.fb.me/ads,REDACTED,471565******9991,7311,ADVERTISING SERVICES,141.55,Pound Sterling (826),1,141.55,Debit,7.49875E+22,02/11/2015,GLOUCESTER CC
Gloucester City Council,23UE,CITY MUSEUM CATERING,LM202,CATERING PROVISIONS -FOOD,5110,08/10/2015,07/10/2015,ASDA SUPERSTORE,GLOUCESTER,REDACTED,471565******2470,5411,GROCERY STORES  SUPERMARKETS,31.32,Pound Sterling (826),1,31.32,Debit,7.46982E+22,02/11/2015,GLOUCESTER CC
Gloucester City Council,23UE,GUILDHALL BAR AND CAF�,LA210,CATERING PROVISIONS -FOOD,5110,09/10/2015,08/10/2015,ASDA SUPERSTORE,GLOUCESTER,REDACTED,471565******2470,5411,GROCERY STORES  SUPERMARKETS,49.41,Pound Sterling (826),1,49.41,Debit,7.46982E+22,02/11/2015,GLOUCESTER CC
Gloucester City Council,23UE,GUILDHALL BAR AND CAF�,LA210,CATERING PROVISIONS -FOOD,5110,12/10/2015,09/10/2015,HOLLAND & BARRETT,GLOUCESTER,REDACTED,471565******2470,5999,MISCELLANEOUS AND RETAIL STORES,7.56,Pound Sterling (826),1,7.56,Debit,7.45792E+22,02/11/2015,GLOUCESTER CC
Gloucester City Council,23UE,GUILDHALL BAR AND CAF�,LA210,CATERING PROVISIONS -FOOD,5110,14/10/2015,13/10/2015,ALDI,GLOUCESTER,REDACTED,471565******2470,5411,GROCERY STORES  SUPERMARKETS,17.2,Pound Sterling (826),1,17.2,Debit,7.40195E+22,02/11/2015,GLOUCESTER CC
Gloucester City Council,23UE,GUILDHALL BAR AND CAF�,LA210,CATERING PROVISIONS -FOOD,5110,15/10/2015,14/10/2015,LIDL UK,GLOUCESTER,REDACTED,471565******2470,5411,GROCERY STORES  SUPERMARKETS,26.2,Pound Sterling (826),1,26.2,Debit,7.46981E+22,02/11/2015,GLOUCESTER CC
Gloucester City Council,23UE,GUILDHALL BAR AND CAF�,LA210,CATERING PROVISIONS -FOOD,5110,15/10/2015,14/10/2015,BOOKER LIMITED GLOUCESTER,GLOUCESTER,REDACTED,471565******2470,5811,CATERERS,18.17,Pound Sterling (826),1,18.17,Debit,7.44637E+22,02/11/2015,GLOUCESTER CC
Gloucester City Council,23UE,GUILDHALL BAR AND CAF�,LA210,HIRE OF EQUIPMENT,5020,15/10/2015,14/10/2015,BOOKER LIMITED GLOUCESTER,GLOUCESTER,REDACTED,471565******2470,5811,CATERERS,29.46,Pound Sterling (826),1,29.46,Debit,7.44637E+22,02/11/2015,GLOUCESTER CC
Gloucester City Council,23UE,GUILDHALL BAR AND CAF�,LA210,CATERING PROVISIONS -FOOD,5110,19/10/2015,16/10/2015,ASDA SUPERSTORE,GLOUCESTER,REDACTED,471565******2470,5411,GROCERY STORES  SUPERMARKETS,22.09,Pound Sterling (826),1,22.09,Debit,7.46982E+22,02/11/2015,GLOUCESTER CC
Gloucester City Council,23UE,GUILDHALL BAR AND CAF�,LA210,CATERING PROVISIONS -FOOD,5110,19/10/2015,18/10/2015,ASDA SUPERSTORE,GLOUCESTER,REDACTED,471565******2470,5411,GROCERY STORES  SUPERMARKETS,7.96,Pound Sterling (826),1,7.96,Debit,7.46982E+22,02/11/2015,GLOUCESTER CC
Gloucester City Council,23UE,GUILDHALL BAR AND CAF�,LA210,CATERING PROVISIONS -FOOD,5110,20/10/2015,19/10/2015,ALDI,GLOUCESTER,REDACTED,471565******2470,5411,GROCERY STORES  SUPERMARKETS,4.66,Pound Sterling (826),1,4.66,Debit,7.40195E+22,02/11/2015,GLOUCESTER CC
Gloucester City Council,23UE,GUILDHALL BAR AND CAF�,LA210,CATERING PROVISIONS -FOOD,5110,22/10/2015,21/10/2015,LIDL UK,GLOUCESTER,REDACTED,471565******2470,5411,GROCERY STORES  SUPERMARKETS,23.85,Pound Sterling (826),1,23.85,Debit,7.46981E+22,02/11/2015,GLOUCESTER CC
Gloucester City Council,23UE,GUILDHALL BAR AND CAF�,LA210,CATERING PROVISIONS -FOOD,5110,22/10/2015,21/10/2015,BOOKER LIMITED GLOUCESTER,GLOUCESTER,REDACTED,471565******2470,5811,CATERERS,16.96,Pound Sterling (826),1,16.96,Debit,7.44637E+22,02/11/2015,GLOUCESTER CC
Gloucester City Council,23UE,GUILDHALL BAR AND CAF�,LA210,HIRE OF EQUIPMENT,5020,22/10/2015,21/10/2015,BOOKER LIMITED GLOUCESTER,GLOUCESTER,REDACTED,471565******2470,5811,CATERERS,15.55,Pound Sterling (826),1,15.55,Debit,7.44637E+22,02/11/2015,GLOUCESTER CC
Gloucester City Council,23UE,GUILDHALL BAR AND CAF�,LA210,CATERING PROVISIONS -FOOD,5110,22/10/2015,21/10/2015,ASDA SUPERSTORE,GLOUCESTER,REDACTED,471565******2470,5411,GROCERY STORES  SUPERMARKETS,6.2,Pound Sterling (826),1,6.2,Debit,7.46982E+22,02/11/2015,GLOUCESTER CC
Gloucester City Council,23UE,GUILDHALL BAR AND CAF�,LA210,CATERING PROVISIONS -FOOD,5110,23/10/2015,22/10/2015,ICELAND,GLOUCESTER,REDACTED,471565******2470,5411,GROCERY STORES  SUPERMARKETS,35,Pound Sterling (826),1,35,Debit,7.46982E+22,02/11/2015,GLOUCESTER CC
Gloucester City Council,23UE,GUILDHALL BAR AND CAF�,LA210,CATERING PROVISIONS -FOOD,5110,26/10/2015,23/10/2015,ASDA SUPERSTORE,GLOUCESTER,REDACTED,471565******2470,5411,GROCERY STORES  SUPERMARKETS,15,Pound Sterling (826),1,15,Debit,7.46982E+22,02/11/2015,GLOUCESTER CC
Gloucester City Council,23UE,GLOUCESTER GUILDHALL,LA100,OPERATIONAL EQUIPMENT <5000,5012,29/10/2015,28/10/2015,Amazon UK Marketplace,800-279-6620,REDACTED,471565******2470,5999,MISCELLANEOUS AND RETAIL STORES,34.07,Pound Sterling (826),1,34.07,Debit,7.43132E+22,02/11/2015,GLOUCESTER CC
Gloucester City Council,23UE,GUILDHALL BAR AND CAF�,LA210,CATERING PROVISIONS -FOOD,5110,30/10/2015,29/10/2015,BOOKER LIMITED GLOUCESTER,GLOUCESTER,REDACTED,471565******2470,5811,CATERERS,15.53,Pound Sterling (826),1,15.53,Debit,7.44637E+22,02/11/2015,GLOUCESTER CC
Gloucester City Council,23UE,BLACKFRIARS CATERING,LA220,CATERING PROVISIONS -FOOD,5110,30/10/2015,29/10/2015,BOOKER LIMITED GLOUCESTER,GLOUCESTER,REDACTED,471565******2470,5811,CATERERS,61.65,Pound Sterling (826),1,61.65,Debit,7.44637E+22,02/11/2015,GLOUCESTER CC
Gloucester City Council,23UE,GUILDHALL BAR AND CAF�,LA210,CATERING PROVISIONS -LIQUOR,5111,30/10/2015,29/10/2015,BOOKER LIMITED GLOUCESTER,GLOUCESTER,REDACTED,471565******2470,5811,CATERERS,6.58,Pound Sterling (826),1,6.58,Debit,7.44637E+22,02/11/2015,GLOUCESTER CC
Gloucester City Council,23UE,GUILDHALL BAR AND CAF�,LA210,HIRE OF EQUIPMENT,5020,30/10/2015,29/10/2015,BOOKER LIMITED GLOUCESTER,GLOUCESTER,REDACTED,471565******2470,5811,CATERERS,7.06,Pound Sterling (826),1,7.06,Debit,7.44637E+22,02/11/2015,GLOUCESTER CC
Gloucester City Council,23UE,GUILDHALL EVENTS,LA200,FEES FOR SERVICES RECEIVED,5350,30/10/2015,29/10/2015,ARGOS LTD,GLOUCESTER,REDACTED,471565******2470,5310,DISCOUNT STORES,47.49,Pound Sterling (826),1,47.49,Debit,7.45792E+22,02/11/2015,GLOUCESTER CC
Gloucester City Council,23UE,GROUP MGR CULT SER & TOURISM,GR102,VOCATIONAL TRAINING,2970,05/10/2015,02/10/2015,TRAINLINE,RAIL TICKETS,REDACTED,471565******4841,4112,PASSENGER RAILWAYS,39.98,Pound Sterling (826),1,39.98,Debit,7.49989E+22,02/11/2015,GLOUCESTER CC
Gloucester City Council,23UE,MANAGING DIRECTOR,RE100,PUBLIC TRANSPORTATION,4061,06/10/2015,05/10/2015,TRAINLINE,RAIL TICKETS,REDACTED,471565******4841,4112,PASSENGER RAILWAYS,108.63,Pound Sterling (826),1,108.63,Debit,7.49989E+22,02/11/2015,GLOUCESTER CC
Gloucester City Council,23UE,MEMBERS SUPPORT,RC300,PUBLIC TRANSPORTATION,4061,06/10/2015,05/10/2015,TRAINLINE,RAIL TICKETS,REDACTED,471565******4841,4112,PASSENGER RAILWAYS,63.34,Pound Sterling (826),1,63.34,Debit,7.49989E+22,02/11/2015,GLOUCESTER CC
Gloucester City Council,23UE,ENVIRONMENTAL PLANNING,LM340,PUBLIC TRANSPORTATION,4061,07/10/2015,06/10/2015,TRAINLINE,RAIL TICKETS,REDACTED,471565******4841,4112,PASSENGER RAILWAYS,17.59,Pound Sterling (826),1,17.59,Debit,7.49989E+22,02/11/2015,GLOUCESTER CC
Gloucester City Council,23UE,PLANNING POLICY,PT300,PUBLIC TRANSPORTATION,4061,12/10/2015,09/10/2015,TRAINLINE,RAIL TICKETS,REDACTED,471565******4841,4112,PASSENGER RAILWAYS,239.8,Pound Sterling (826),1,239.8,Debit,7.49989E+22,02/11/2015,GLOUCESTER CC
Gloucester City Council,23UE,FOOD SAFETY,HE100,PUBLIC TRANSPORTATION,4061,19/10/2015,15/10/2015,TRAINLINE,RAIL TICKETS,REDACTED,471565******4841,4112,PASSENGER RAILWAYS,120.67,Pound Sterling (826),1,120.67,Debit,7.49989E+22,02/11/2015,GLOUCESTER CC
Gloucester City Council,23UE,DEMOCRATIC SERVICES,RS100,PUBLIC TRANSPORTATION,4061,19/10/2015,16/10/2015,TRAINLINE,RAIL TICKETS,REDACTED,471565******4841,4112,PASSENGER RAILWAYS,43.76,Pound Sterling (826),1,43.76,Debit,7.49989E+22,02/11/2015,GLOUCESTER CC
Gloucester City Council,23UE,MEMBERS SUPPORT,RC300,PUBLIC TRANSPORTATION,4061,19/10/2015,16/10/2015,TRAINLINE,RAIL TICKETS,REDACTED,471565******4841,4112,PASSENGER RAILWAYS,171.46,Pound Sterling (826),1,171.46,Debit,7.49989E+22,02/11/2015,GLOUCESTER CC
Gloucester City Council,23UE,POLLUTION CONTROL,HE300,PUBLIC TRANSPORTATION,4061,20/10/2015,19/10/2015,TRAINLINE,RAIL TICKETS,REDACTED,471565******4841,4112,PASSENGER RAILWAYS,79.05,Pound Sterling (826),1,79.05,Debit,7.49989E+22,02/11/2015,GLOUCESTER CC
Gloucester City Council,23UE,MEMBERS SUPPORT,RC300,PUBLIC TRANSPORTATION,4061,20/10/2015,19/10/2015,TRAINLINE,RAIL TICKETS,REDACTED,471565******4841,4112,PASSENGER RAILWAYS,72.22,Pound Sterling (826),1,72.22,Debit,7.49989E+22,02/11/2015,GLOUCESTER CC
Gloucester City Council,23UE,POLLUTION CONTROL,HE300,PUBLIC TRANSPORTATION,4061,13/10/2015,12/10/2015,TRAINLINE,RAIL TICKETS,REDACTED,471565******8839,4112,PASSENGER RAILWAYS,72.22,Pound Sterling (826),1,72.22,Debit,7.49989E+22,02/11/2015,GLOUCESTER CC
Gloucester City Council,23UE,CONTACT CENTRE,RB300,FEES FOR SERVICES RECEIVED,5350,26/10/2015,23/10/2015,DISCLOSURE SCOT,EDINBURGH,REDACTED,471565******8839,9399,GOVERNMENT SERVICES NOT ELSEWHERE CLASSIFIED,25,Pound Sterling (826),1,25,Debit,7.49168E+22,02/11/2015,GLOUCESTER CC
Gloucester City Council,23UE,NMS CONTRACT,HI102,PUBLIC TRANSPORTATION,4061,30/10/2015,29/10/2015,TRAINLINE,RAIL TICKETS,REDACTED,471565******8839,4112,PASSENGER RAILWAYS,78.44,Pound Sterling (826),1,78.44,Debit,7.49989E+22,02/11/2015,GLOUCESTER CC
Gloucester City Council,23UE,GUILDHALL CINEMA,LA202,ADVERTISING AND PUBLICITY,5702,06/10/2015,05/10/2015,WWW.INSTANTPRINT.C,01709 382202,REDACTED,471565******7657,7338,QUICK-COPY AND REPRODUCTION SERVICES,33.99,Pound Sterling (826),1,33.99,Debit,7.45792E+22,02/11/2015,GLOUCESTER CC
Gloucester City Council,23UE,GUILDHALL EVENTS,LA200,ADVERTISING AND PUBLICITY,5702,07/10/2015,06/10/2015,WWW.INSTANTPRINT.C,01709 382202,REDACTED,471565******7657,7338,QUICK-COPY AND REPRODUCTION SERVICES,17.99,Pound Sterling (826),1,17.99,Debit,7.45792E+22,02/11/2015,GLOUCESTER CC
Gloucester City Council,23UE,GUILDHALL EVENTS,LA200,FEES FOR SERVICES RECEIVED,5350,08/10/2015,07/10/2015,MIPERMIT PARKING-DOM,INTERNET,REDACTED,471565******7657,7523,AUTOMOBILE PARKING LOTS AND GARAGES,15,Pound Sterling (826),1,15,Debit,7.47451E+22,02/11/2015,GLOUCESTER CC
Gloucester City Council,23UE,GUILDHALL EVENTS,LA200,FEES FOR SERVICES RECEIVED,5350,08/10/2015,07/10/2015,MIPERMIT PARKING-DOM,INTERNET,REDACTED,471565******7657,7523,AUTOMOBILE PARKING LOTS AND GARAGES,10,Pound Sterling (826),1,10,Debit,7.47451E+22,02/11/2015,GLOUCESTER CC
Gloucester City Council,23UE,GUILDHALL EVENTS,LA200,FEES FOR SERVICES RECEIVED,5350,09/10/2015,08/10/2015,MIPERMIT PARKING-DOM,INTERNET,REDACTED,471565******7657,7523,AUTOMOBILE PARKING LOTS AND GARAGES,10,Pound Sterling (826),1,10,Debit,7.47451E+22,02/11/2015,GLOUCESTER CC
Gloucester City Council,23UE,GUILDHALL EVENTS,LA200,FEES FOR SERVICES RECEIVED,5350,12/10/2015,09/10/2015,MIPERMIT PARKING-DOM,INTERNET,REDACTED,471565******7657,7523,AUTOMOBILE PARKING LOTS AND GARAGES,10,Pound Sterling (826),1,10,Debit,7.47451E+22,02/11/2015,GLOUCESTER CC
Gloucester City Council,23UE,GUILDHALL EVENTS,LA200,FEES FOR SERVICES RECEIVED,5350,13/10/2015,12/10/2015,MIPERMIT PARKING-DOM,INTERNET,REDACTED,471565******7657,7523,AUTOMOBILE PARKING LOTS AND GARAGES,30,Pound Sterling (826),1,30,Debit,7.47451E+22,02/11/2015,GLOUCESTER CC
Gloucester City Council,23UE,GUILDHALL EVENTS,LA200,FEES FOR SERVICES RECEIVED,5350,15/10/2015,14/10/2015,MIPERMIT PARKING-DOM,INTERNET,REDACTED,471565******7657,7523,AUTOMOBILE PARKING LOTS AND GARAGES,10,Pound Sterling (826),1,10,Debit,7.47451E+22,02/11/2015,GLOUCESTER CC
Gloucester City Council,23UE,GUILDHALL EVENTS,LA200,FEES FOR SERVICES RECEIVED,5350,15/10/2015,14/10/2015,MIPERMIT PARKING-DOM,INTERNET,REDACTED,471565******7657,7523,AUTOMOBILE PARKING LOTS AND GARAGES,10,Pound Sterling (826),1,10,Debit,7.47451E+22,02/11/2015,GLOUCESTER CC
Gloucester City Council,23UE,GUILDHALL EVENTS,LA200,FEES FOR SERVICES RECEIVED,5350,15/10/2015,14/10/2015,MIPERMIT PARKING-DOM,INTERNET,REDACTED,471565******7657,7523,AUTOMOBILE PARKING LOTS AND GARAGES,10,Pound Sterling (826),1,10,Debit,7.47451E+22,02/11/2015,GLOUCESTER CC
Gloucester City Council,23UE,GUILDHALL EVENTS,LA200,FEES FOR SERVICES RECEIVED,5350,16/10/2015,15/10/2015,BEERMATS.COM,7968303030,REDACTED,471565******7657,2741,MISCELLANEOUS PUBLISHING & PRINTING,382.07,Pound Sterling (826),1,382.07,Debit,7.49989E+22,02/11/2015,GLOUCESTER CC
Gloucester City Council,23UE,GUILDHALL EVENTS,LA200,FEES FOR SERVICES RECEIVED,5350,16/10/2015,15/10/2015,MIPERMIT PARKING-DOM,INTERNET,REDACTED,471565******7657,7523,AUTOMOBILE PARKING LOTS AND GARAGES,10,Pound Sterling (826),1,10,Debit,7.47451E+22,02/11/2015,GLOUCESTER CC
Gloucester City Council,23UE,GUILDHALL EVENTS,LA200,FEES FOR SERVICES RECEIVED,5350,19/10/2015,16/10/2015,MIPERMIT PARKING-DOM,INTERNET,REDACTED,471565******7657,7523,AUTOMOBILE PARKING LOTS AND GARAGES,20,Pound Sterling (826),1,20,Debit,7.47451E+22,02/11/2015,GLOUCESTER CC
Gloucester City Council,23UE,GUILDHALL EVENTS,LA200,FEES FOR SERVICES RECEIVED,5350,19/10/2015,16/10/2015,PAYPAL *PARTY PACKS,35314369001,REDACTED,471565******7657,7399,BUSINESS SERVICES NOT ELSEWHERE CLASSIFIED,109.5,Pound Sterling (826),1,109.5,Debit,7.49989E+22,02/11/2015,GLOUCESTER CC
Gloucester City Council,23UE,GUILDHALL EVENTS,LA200,FEES FOR SERVICES RECEIVED,5350,19/10/2015,16/10/2015,PAYPAL *A2ZKIDSLTD,35314369001,REDACTED,471565******7657,5641,CHILDREN'S AND INFANTS' WEAR STORES,57.65,Pound Sterling (826),1,57.65,Debit,7.49988E+22,02/11/2015,GLOUCESTER CC
Gloucester City Council,23UE,GUILDHALL EVENTS,LA200,FEES FOR SERVICES RECEIVED,5350,19/10/2015,16/10/2015,PAYPAL *FANCYDRESSM,35314369001,REDACTED,471565******7657,5945,HOBBY TOY  AND GAME SHOPS,30,Pound Sterling (826),1,30,Debit,7.49988E+22,02/11/2015,GLOUCESTER CC
Gloucester City Council,23UE,GUILDHALL EVENTS,LA200,FEES FOR SERVICES RECEIVED,5350,19/10/2015,16/10/2015,PAYPAL *KARNIVALHOU,35314369001,REDACTED,471565******7657,5641,CHILDREN'S AND INFANTS' WEAR STORES,31.53,Pound Sterling (826),1,31.53,Debit,7.49988E+22,02/11/2015,GLOUCESTER CC
Gloucester City Council,23UE,GUILDHALL EVENTS,LA200,FEES FOR SERVICES RECEIVED,5350,19/10/2015,16/10/2015,PAYPAL *A2ZKIDSLTD,35314369001,REDACTED,471565******7657,5641,CHILDREN'S AND INFANTS' WEAR STORES,-3.9,Pound Sterling (826),1,-3.9,Credit,7.49988E+22,02/11/2015,GLOUCESTER CC
Gloucester City Council,23UE,GUILDHALL EVENTS,LA200,FEES FOR SERVICES RECEIVED,5350,20/10/2015,19/10/2015,Amazon UK Marketplace,800-279-6620,REDACTED,471565******7657,5942,BOOK STORES,9.18,Pound Sterling (826),1,9.18,Debit,7.43132E+22,02/11/2015,GLOUCESTER CC
Gloucester City Council,23UE,GUILDHALL EVENTS,LA200,FEES FOR SERVICES RECEIVED,5350,20/10/2015,19/10/2015,Amazon UK Retail,AMAZON.CO.UK,REDACTED,471565******7657,5969,ALL OTHER DIRECT MARKETERS,23.47,Pound Sterling (826),1,23.47,Debit,7.43132E+22,02/11/2015,GLOUCESTER CC
Gloucester City Council,23UE,GUILDHALL EVENTS,LA200,FEES FOR SERVICES RECEIVED,5350,21/10/2015,20/10/2015,GLO'SHIRE CC WEB PCN,UXBRIDGE,REDACTED,471565******7657,7523,AUTOMOBILE PARKING LOTS AND GARAGES,35,Pound Sterling (826),1,35,Debit,7.46982E+22,02/11/2015,GLOUCESTER CC
Gloucester City Council,23UE,GUILDHALL EVENTS,LA200,FEES FOR SERVICES RECEIVED,5350,21/10/2015,20/10/2015,Amazon UK Marketplace,800-279-6620,REDACTED,471565******7657,5999,MISCELLANEOUS AND RETAIL STORES,1.07,Pound Sterling (826),1,1.07,Debit,7.43132E+22,02/11/2015,GLOUCESTER CC
Gloucester City Council,23UE,GUILDHALL EVENTS,LA200,FEES FOR SERVICES RECEIVED,5350,22/10/2015,21/10/2015,MIPERMIT PARKING-DOM,INTERNET,REDACTED,471565******7657,7523,AUTOMOBILE PARKING LOTS AND GARAGES,10,Pound Sterling (826),1,10,Debit,7.47451E+22,02/11/2015,GLOUCESTER CC
Gloucester City Council,23UE,GUILDHALL EVENTS,LA200,FEES FOR SERVICES RECEIVED,5350,27/10/2015,26/10/2015,WWW.INSTANTPRINT.C,01709 382202,REDACTED,471565******7657,7338,QUICK-COPY AND REPRODUCTION SERVICES,33.99,Pound Sterling (826),1,33.99,Debit,7.45792E+22,02/11/2015,GLOUCESTER CC
Gloucester City Council,23UE,GUILDHALL EVENTS,LA200,FEES FOR SERVICES RECEIVED,5350,29/10/2015,28/10/2015,MIPERMIT PARKING-DOM,INTERNET,REDACTED,471565******7657,7523,AUTOMOBILE PARKING LOTS AND GARAGES,10,Pound Sterling (826),1,10,Debit,7.47451E+22,02/11/2015,GLOUCESTER CC
Gloucester City Council,23UE,GUILDHALL EVENTS,LA200,ADVERTISING AND PUBLICITY,5702,29/10/2015,28/10/2015,WWW.INSTANTPRINT.C,01709 382202,REDACTED,471565******7657,7338,QUICK-COPY AND REPRODUCTION SERVICES,24.99,Pound Sterling (826),1,24.99,Debit,7.45792E+22,02/11/2015,GLOUCESTER CC
Gloucester City Council,23UE,BLACKFRIARS,LA609,FEES FOR SERVICES RECEIVED,5350,29/10/2015,28/10/2015,Amazon UK Marketplace,800-279-6620,REDACTED,471565******7657,5942,BOOK STORES,3.89,Pound Sterling (826),1,3.89,Debit,7.43132E+22,02/11/2015,GLOUCESTER CC
Gloucester City Council,23UE,BLACKFRIARS,LA609,FEES FOR SERVICES RECEIVED,5350,29/10/2015,28/10/2015,Amazon UK Marketplace,800-279-6620,REDACTED,471565******7657,5942,BOOK STORES,9.18,Pound Sterling (826),1,9.18,Debit,7.43132E+22,02/11/2015,GLOUCESTER CC
Gloucester City Council,23UE,BLACKFRIARS,LA609,FEES FOR SERVICES RECEIVED,5350,29/10/2015,28/10/2015,Amazon UK Marketplace,800-279-6620,REDACTED,471565******7657,5942,BOOK STORES,29.49,Pound Sterling (826),1,29.49,Debit,7.43132E+22,02/11/2015,GLOUCESTER CC
Gloucester City Council,23UE,GUILDHALL EVENTS,LA200,FEES FOR SERVICES RECEIVED,5350,30/10/2015,28/10/2015,EBUYER (UK) LTD,SHEFFIELD,REDACTED,471565******7657,5722,HOUSEHOLD APPLIANCE STORES,35.7,Pound Sterling (826),1,35.7,Debit,7.46786E+22,02/11/2015,GLOUCESTER CC
Gloucester City Council,23UE,GUILDHALL EVENTS,LA200,FEES FOR SERVICES RECEIVED,5350,30/10/2015,29/10/2015,WWW.INSTANTPRINT.C,01709 382202,REDACTED,471565******7657,7338,QUICK-COPY AND REPRODUCTION SERVICES,21.99,Pound Sterling (826),1,21.99,Debit,7.45792E+22,02/11/2015,GLOUCESTER CC
Gloucester City Council,23UE,BLACKFRIARS,LA609,FEES FOR SERVICES RECEIVED,5350,30/10/2015,29/10/2015,Amazon UK Marketplace,800-279-6620,REDACTED,471565******7657,5999,MISCELLANEOUS AND RETAIL STORES,16.94,Pound Sterling (826),1,16.94,Debit,7.43132E+22,02/11/2015,GLOUCESTER CC
Gloucester City Council,23UE,GUILDHALL EVENTS,LA200,FEES FOR SERVICES RECEIVED,5350,02/11/2015,30/10/2015,MIPERMIT PARKING-DOM,INTERNET,REDACTED,471565******7657,7523,AUTOMOBILE PARKING LOTS AND GARAGES,20,Pound Sterling (826),1,20,Debit,7.47451E+22,02/11/2015,GLOUCESTER CC
Gloucester City Council,23UE,GUILDHALL EVENTS,LA200,OPERATIONAL EQUIPMENT <5000,5012,02/11/2015,31/10/2015,FACEBOOK AT6NA8JE72,www.fb.me/ads,REDACTED,471565******7657,7311,ADVERTISING SERVICES,55.56,Pound Sterling (826),1,55.56,Debit,7.49875E+22,02/11/2015,GLOUCESTER CC
Gloucester City Council,23UE,BUSINESS TRANSFORMATION & TECH,RT700,COMPUTER CONSUMABLES,5422,05/10/2015,03/10/2015,Amazon UK Retail,AMAZON.CO.UK,REDACTED,471565******3318,5969,ALL OTHER DIRECT MARKETERS,19.93,Pound Sterling (826),1,19.93,Debit,7.43132E+22,02/11/2015,GLOUCESTER CC
Gloucester City Council,23UE,BUSINESS PLANNING & PERFORMANC,RL500,PUBLIC TRANSPORTATION,4061,08/10/2015,06/10/2015,PARKING PAYMENT: 21,POOLE,REDACTED,471565******3318,7523,AUTOMOBILE PARKING LOTS AND GARAGES,6,Pound Sterling (826),1,6,Debit,7.40195E+22,02/11/2015,GLOUCESTER CC
Gloucester City Council,23UE,BUSINESS PLANNING & PERFORMANC,RL500,PUBLIC TRANSPORTATION,4061,09/10/2015,07/10/2015,PARKING PAYMENT: 21,POOLE,REDACTED,471565******3318,7523,AUTOMOBILE PARKING LOTS AND GARAGES,6,Pound Sterling (826),1,6,Debit,7.40195E+22,02/11/2015,GLOUCESTER CC
Gloucester City Council,23UE,BUSINESS PLANNING & PERFORMANC,RL500,PUBLIC TRANSPORTATION,4061,30/10/2015,29/10/2015,TRAINLINE,03332 022 222,REDACTED,471565******3318,4112,PASSENGER RAILWAYS,39.98,Pound Sterling (826),1,39.98,Debit,7.49989E+22,02/11/2015,GLOUCESTER CC
Gloucester City Council,23UE,FOLK MUSEUM,LM210,CATERING PROVISIONS -FOOD,5110,07/10/2015,06/10/2015,HANCOCK CASH AND CARRY LT,LOUGHBOROUGH,REDACTED,471565******5409,5300,WHOLESALE CLUBS,-29.46,Pound Sterling (826),1,-29.46,Credit,7.44637E+22,02/11/2015,GLOUCESTER CC
